[Event "Early-Titled-Tuesday-Blitz-January-23-2024"]
[Site "Chess.com"]
[Date "2024.01.23"]
[Round "6"]
[White "KanalSzachowy"]
[Black "GlennTipton"]
[Result "0-1"]
[WhiteElo "2334"]
[BlackElo "2519"]
[TimeControl "180+1"]
[EndTime "9:06:23 PST"]
[Termination "GlennTipton won by resignation"]

1. e4 {[%clk 0:03:00.9]} 1... e5 {[%clk 0:02:40.6]} 2. Nf3 {[%clk 0:03:00.5]}
2... Nc6 {[%clk 0:02:40.2]} 3. Bc4 {[%clk 0:03:00.8]} 3... Nf6 {[%clk
0:02:40.1]} 4. d4 {[%clk 0:03:00.7]} 4... exd4 {[%clk 0:02:39.3]} 5. e5 {[%clk
0:03:00.1]} 5... Ne4 {[%clk 0:02:39.2]} 6. Qe2 {[%clk 0:02:57.9]} 6... Nc5
{[%clk 0:02:35.8]} 7. Ng5 {[%clk 0:02:58]} 7... Ne6 {[%clk 0:02:32.2]} 8. Nxe6
{[%clk 0:02:58.5]} 8... dxe6 {[%clk 0:02:29]} 9. O-O {[%clk 0:02:58.4]} 9... Be7
{[%clk 0:02:21.1]} 10. Bd3 {[%clk 0:02:47.1]} 10... Nb4 {[%clk 0:02:17.7]} 11.
Be4 {[%clk 0:02:25.2]} 11... c5 {[%clk 0:02:15]} 12. c3 {[%clk 0:02:22.1]} 12...
d3 {[%clk 0:02:14.1]} 13. Qg4 {[%clk 0:02:17.6]} 13... Nc2 {[%clk 0:02:11]} 14.
Qxg7 {[%clk 0:02:15.5]} 14... Rf8 {[%clk 0:02:11]} 15. Bh6 {[%clk 0:02:08.1]}
15... Nxa1 {[%clk 0:02:08.4]} 16. Nd2 {[%clk 0:02:05.2]} 16... Nc2 {[%clk
0:02:05.1]} 17. Qxh7 {[%clk 0:02:01.7]} 17... Qa5 {[%clk 0:01:45.5]} 18. Nc4
{[%clk 0:01:56]} 18... Qa6 {[%clk 0:01:38]} 19. Bxd3 {[%clk 0:01:54.1]} 19... b5
{[%clk 0:01:38.4]} 20. Nd6+ {[%clk 0:01:50.3]} 20... Bxd6 {[%clk 0:01:38.6]} 21.
exd6 {[%clk 0:01:51.2]} 21... Qxd6 {[%clk 0:01:39.3]} 22. Bxb5+ {[%clk
0:01:51.2]} 22... Bd7 {[%clk 0:01:38]} 23. Bxf8 {[%clk 0:01:40.2]} 23... Qxf8
{[%clk 0:01:37.5]} 24. Bxd7+ {[%clk 0:01:39.6]} 24... Kxd7 {[%clk 0:01:38.4]}
25. Qxc2 {[%clk 0:01:39]} 25... Kc7 {[%clk 0:01:35.8]} 26. b4 {[%clk 0:01:33.7]}
26... Rd8 {[%clk 0:01:26.8]} 27. Qa4 {[%clk 0:01:28.3]} 27... Kb8 {[%clk
0:01:18.4]} 28. Rb1 {[%clk 0:01:26.7]} 28... c4 {[%clk 0:01:13.6]} 29. Qb5+
{[%clk 0:01:25.3]} 29... Ka8 {[%clk 0:01:13.9]} 30. Qc6+ {[%clk 0:01:24.2]}
30... Kb8 {[%clk 0:01:14]} 31. Qxc4 {[%clk 0:01:24.4]} 31... Qd6 {[%clk
0:01:10.2]} 32. h3 {[%clk 0:01:21.7]} 32... Rc8 {[%clk 0:01:08.2]} 33. Qb5+
{[%clk 0:01:21]} 33... Ka8 {[%clk 0:01:08.4]} 34. Qa4 {[%clk 0:01:03.6]} 34...
Qd2 {[%clk 0:00:54.8]} 35. Rd1 {[%clk 0:00:59]} 35... Qxc3 {[%clk 0:00:53]} 36.
Qd7 {[%clk 0:00:34.2]} 36... Rc7 {[%clk 0:00:47.6]} 37. Qd8+ {[%clk 0:00:28.9]}
37... Kb7 {[%clk 0:00:47.9]} 38. b5 {[%clk 0:00:25.8]} 38... Qb2 {[%clk
0:00:40.7]} 39. a4 {[%clk 0:00:20.2]} 39... Qb3 {[%clk 0:00:35.4]} 40. Qd4
{[%clk 0:00:19]} 40... Rc4 {[%clk 0:00:31.5]} 41. Qd7+ {[%clk 0:00:18.7]} 41...
Rc7 {[%clk 0:00:31.8]} 42. Qd4 {[%clk 0:00:17.2]} 42... Rc4 {[%clk 0:00:30.9]}
43. Qd7+ {[%clk 0:00:17.6]} 43... Rc7 {[%clk 0:00:31.2]} 44. Qe8 {[%clk
0:00:13.6]} 44... Qxd1+ {[%clk 0:00:28.2]} 0-1

[Event "Early-Titled-Tuesday-Blitz-January-23-2024"]
[Site "Chess.com"]
[Date "2024.01.23"]
[Round "6"]
[White "ReinisUz"]
[Black "CristianS27"]
[Result "1-0"]
[WhiteElo "2456"]
[BlackElo "2582"]
[TimeControl "180+1"]
[EndTime "9:06:25 PST"]
[Termination "ReinisUz won on time"]

1. c4 {[%clk 0:03:00.9]} 1... Nf6 {[%clk 0:03:00.1]} 2. Nc3 {[%clk 0:03:00.6]}
2... g6 {[%clk 0:03:00.6]} 3. g3 {[%clk 0:02:59.8]} 3... Bg7 {[%clk 0:03:00.6]}
4. Bg2 {[%clk 0:03:00.3]} 4... O-O {[%clk 0:03:01.4]} 5. d3 {[%clk 0:03:00]}
5... d6 {[%clk 0:03:01.7]} 6. e4 {[%clk 0:03:00.1]} 6... c5 {[%clk 0:03:01.7]}
7. Nge2 {[%clk 0:03:00.7]} 7... Nc6 {[%clk 0:03:02.4]} 8. O-O {[%clk 0:03:01.2]}
8... a6 {[%clk 0:03:03]} 9. Rb1 {[%clk 0:03:01.3]} 9... Rb8 {[%clk 0:03:02.6]}
10. a4 {[%clk 0:03:01.6]} 10... Ne8 {[%clk 0:02:58.8]} 11. f4 {[%clk 0:03:00.7]}
11... Nc7 {[%clk 0:02:54.2]} 12. Be3 {[%clk 0:02:56.5]} 12... Ne6 {[%clk
0:02:54]} 13. Nd5 {[%clk 0:02:49.4]} 13... Ned4 {[%clk 0:02:51.5]} 14. Nxd4
{[%clk 0:02:46.8]} 14... Nxd4 {[%clk 0:02:51.8]} 15. b4 {[%clk 0:02:43.1]} 15...
e6 {[%clk 0:02:31.7]} 16. Nc3 {[%clk 0:02:30.1]} 16... cxb4 {[%clk 0:02:31.9]}
17. Rxb4 {[%clk 0:02:30.3]} 17... Qa5 {[%clk 0:02:32.5]} 18. Na2 {[%clk
0:02:27]} 18... b5 {[%clk 0:02:09.6]} 19. cxb5 {[%clk 0:02:26.3]} 19... axb5
{[%clk 0:02:10.2]} 20. Kh1 {[%clk 0:02:17.6]} 20... Nc6 {[%clk 0:02:00]} 21.
Rxb5 {[%clk 0:02:10.9]} 21... Rxb5 {[%clk 0:01:59.9]} 22. axb5 {[%clk
0:02:11.8]} 22... Qxb5 {[%clk 0:01:57]} 23. Nc1 {[%clk 0:02:06.3]} 23... Ba6
{[%clk 0:01:54.5]} 24. f5 {[%clk 0:01:56]} 24... Ne5 {[%clk 0:01:42.4]} 25. fxe6
{[%clk 0:01:45.8]} 25... fxe6 {[%clk 0:01:40.2]} 26. Rxf8+ {[%clk 0:01:44.7]}
26... Bxf8 {[%clk 0:01:40.2]} 27. Bh3 {[%clk 0:01:43.1]} 27... Bc8 {[%clk
0:01:07.4]} 28. d4 {[%clk 0:01:40.6]} 28... Nc4 {[%clk 0:01:01.5]} 29. Bf4
{[%clk 0:01:18.4]} 29... Qb1 {[%clk 0:00:42.1]} 30. Qd3 {[%clk 0:01:04.5]} 30...
Qxd3 {[%clk 0:00:23.5]} 31. Nxd3 {[%clk 0:01:05.4]} 31... Kf7 {[%clk 0:00:24.2]}
32. d5 {[%clk 0:01:01.4]} 32... Bg7 {[%clk 0:00:17.4]} 33. Kg2 {[%clk
0:00:57.3]} 33... Nb6 {[%clk 0:00:07.6]} 34. dxe6+ {[%clk 0:00:44.8]} 34... Bxe6
{[%clk 0:00:08.5]} 35. Bxd6 {[%clk 0:00:44.9]} 35... Bc4 {[%clk 0:00:04.5]} 36.
Ne5+ {[%clk 0:00:41.3]} 36... Bxe5 {[%clk 0:00:03.8]} 37. Bxe5 {[%clk
0:00:42.2]} 37... Bd3 {[%clk 0:00:04.4]} 38. Kf3 {[%clk 0:00:39.4]} 38... Nc4
{[%clk 0:00:04.9]} 39. Bc3 {[%clk 0:00:26.6]} 39... Nd6 {[%clk 0:00:03.7]} 40.
e5 {[%clk 0:00:26.1]} 40... Nb5 {[%clk 0:00:03.6]} 41. Bb2 {[%clk 0:00:25]}
41... Bf5 {[%clk 0:00:03.1]} 42. Bf1 {[%clk 0:00:22.5]} 42... Be6 {[%clk
0:00:01.2]} 43. Bxb5 {[%clk 0:00:21.6]} 1-0

[Event "Early-Titled-Tuesday-Blitz-January-23-2024"]
[Site "Chess.com"]
[Date "2024.01.23"]
[Round "6"]
[White "m_ezat"]
[Black "HamedWafa4"]
[Result "0-1"]
[WhiteElo "2466"]
[BlackElo "2724"]
[TimeControl "180+1"]
[EndTime "9:06:26 PST"]
[Termination "HamedWafa4 won on time"]

1. d4 {[%clk 0:01:52.2]} 1... Nf6 {[%clk 0:02:58.7]} 2. c4 {[%clk 0:01:52.7]}
2... e6 {[%clk 0:02:58.6]} 3. Nf3 {[%clk 0:01:53.3]} 3... Bb4+ {[%clk
0:02:56.7]} 4. Bd2 {[%clk 0:01:52.7]} 4... Bxd2+ {[%clk 0:02:56.3]} 5. Qxd2
{[%clk 0:01:51.9]} 5... O-O {[%clk 0:02:56.5]} 6. Nc3 {[%clk 0:01:52.1]} 6... d6
{[%clk 0:02:56.7]} 7. Qc2 {[%clk 0:01:51.2]} 7... Nc6 {[%clk 0:02:54.9]} 8. g3
{[%clk 0:01:51.2]} 8... e5 {[%clk 0:02:53.4]} 9. Rd1 {[%clk 0:01:49.8]} 9... Re8
{[%clk 0:02:46.7]} 10. dxe5 {[%clk 0:01:47.1]} 10... Nxe5 {[%clk 0:02:46.6]} 11.
Nxe5 {[%clk 0:01:47.3]} 11... Rxe5 {[%clk 0:02:47.3]} 12. Bg2 {[%clk 0:01:47.5]}
12... h5 {[%clk 0:02:40.6]} 13. O-O {[%clk 0:01:45]} 13... h4 {[%clk 0:02:40.5]}
14. Rd4 {[%clk 0:01:41.3]} 14... hxg3 {[%clk 0:02:28]} 15. hxg3 {[%clk
0:01:36.9]} 15... Qe8 {[%clk 0:02:21.8]} 16. Rh4 {[%clk 0:01:33.2]} 16... c6
{[%clk 0:02:12.6]} 17. e4 {[%clk 0:01:30.4]} 17... Bd7 {[%clk 0:02:04.2]} 18.
Qd2 {[%clk 0:01:27.2]} 18... Qe6 {[%clk 0:01:57.9]} 19. b3 {[%clk 0:01:14.8]}
19... Rd8 {[%clk 0:01:38.7]} 20. Qe3 {[%clk 0:01:12.9]} 20... b6 {[%clk
0:01:35.2]} 21. Rd1 {[%clk 0:01:11.9]} 21... Qe7 {[%clk 0:01:08.8]} 22. Qd2
{[%clk 0:00:58.4]} 22... Bg4 {[%clk 0:01:02.7]} 23. Rc1 {[%clk 0:00:47.1]} 23...
Bc8 {[%clk 0:00:50.6]} 24. Rd1 {[%clk 0:00:35.8]} 24... Bg4 {[%clk 0:00:48.9]}
25. Rc1 {[%clk 0:00:35.4]} 25... Rh5 {[%clk 0:00:49]} 26. Rxh5 {[%clk
0:00:33.1]} 26... Bxh5 {[%clk 0:00:49.9]} 27. Re1 {[%clk 0:00:30.7]} 27... Bg4
{[%clk 0:00:38.2]} 28. Qg5 {[%clk 0:00:28.1]} 28... Qe5 {[%clk 0:00:26.5]} 29.
Qc1 {[%clk 0:00:25.2]} 29... Qh5 {[%clk 0:00:23.8]} 30. Qf4 {[%clk 0:00:21.6]}
30... Qe5 {[%clk 0:00:20.2]} 31. Qc1 {[%clk 0:00:20.9]} 31... g6 {[%clk
0:00:20.6]} 32. Qd2 {[%clk 0:00:18.5]} 32... Kg7 {[%clk 0:00:20.6]} 33. Qe3
{[%clk 0:00:09.9]} 33... Rh8 {[%clk 0:00:19.9]} 34. Kf1 {[%clk 0:00:05.4]} 34...
Qh5 {[%clk 0:00:18.5]} 35. e5 {[%clk 0:00:04.7]} 35... dxe5 {[%clk 0:00:15.9]}
36. Qxe5 {[%clk 0:00:04.9]} 36... Bf5 {[%clk 0:00:10.7]} 37. c5 {[%clk
0:00:02.3]} 37... Bd3+ {[%clk 0:00:10.5]} 38. Re2 {[%clk 0:00:01.3]} 38... Qxe5
{[%clk 0:00:10.4]} 0-1

[Event "Early-Titled-Tuesday-Blitz-January-23-2024"]
[Site "Chess.com"]
[Date "2024.01.23"]
[Round "6"]
[White "PenguinPacks"]
[Black "YurasovMat-2012"]
[Result "1-0"]
[WhiteElo "2443"]
[BlackElo "2597"]
[TimeControl "180+1"]
[EndTime "9:06:27 PST"]
[Termination "PenguinPacks won on time"]

1. d4 {[%clk 0:03:00.9]} 1... d5 {[%clk 0:02:57.8]} 2. Bf4 {[%clk 0:03:01.3]}
2... c5 {[%clk 0:02:56.7]} 3. e3 {[%clk 0:02:59.3]} 3... Nc6 {[%clk 0:02:56]} 4.
Nf3 {[%clk 0:02:57.9]} 4... cxd4 {[%clk 0:02:54.9]} 5. exd4 {[%clk 0:02:57.8]}
5... Nf6 {[%clk 0:02:55]} 6. c3 {[%clk 0:02:54.8]} 6... Bg4 {[%clk 0:02:55.4]}
7. Nbd2 {[%clk 0:02:54.3]} 7... e6 {[%clk 0:02:54.5]} 8. Qb3 {[%clk 0:02:54.8]}
8... Bd6 {[%clk 0:02:49]} 9. Qxb7 {[%clk 0:02:40.6]} 9... O-O {[%clk 0:02:48.1]}
10. Bg5 {[%clk 0:02:16.3]} 10... Rc8 {[%clk 0:02:35.8]} 11. Ba6 {[%clk 0:02:11]}
11... Rc7 {[%clk 0:02:30.2]} 12. Qb5 {[%clk 0:02:06.6]} 12... h6 {[%clk
0:02:27.3]} 13. Bh4 {[%clk 0:02:05.8]} 13... g5 {[%clk 0:02:27.1]} 14. Bg3
{[%clk 0:02:05.8]} 14... Ne4 {[%clk 0:02:27.3]} 15. Nxe4 {[%clk 0:02:02.6]}
15... dxe4 {[%clk 0:02:26.3]} 16. Nd2 {[%clk 0:02:01.6]} 16... f5 {[%clk
0:02:22.8]} 17. Bxd6 {[%clk 0:02:00.2]} 17... Qxd6 {[%clk 0:02:23.7]} 18. Nc4
{[%clk 0:01:57.6]} 18... Qe7 {[%clk 0:02:22]} 19. h3 {[%clk 0:01:40.4]} 19...
Bh5 {[%clk 0:02:16]} 20. g4 {[%clk 0:01:40]} 20... fxg4 {[%clk 0:02:10.4]} 21.
hxg4 {[%clk 0:01:40.9]} 21... Bxg4 {[%clk 0:02:10.2]} 22. Ne3 {[%clk 0:01:30.6]}
22... Bf3 {[%clk 0:02:04.7]} 23. Rxh6 {[%clk 0:01:31.1]} 23... Kg7 {[%clk
0:01:47]} 24. Rh2 {[%clk 0:01:20.8]} 24... Qf6 {[%clk 0:01:43.4]} 25. Qc5 {[%clk
0:01:01.4]} 25... Qf4 {[%clk 0:01:25.8]} 26. Rh3 {[%clk 0:01:01.6]} 26... Bg2
{[%clk 0:01:02.8]} 27. Nxg2 {[%clk 0:00:47.2]} 27... Qxf2+ {[%clk 0:01:02.2]}
28. Kd1 {[%clk 0:00:45.6]} 28... Qxg2 {[%clk 0:01:02.2]} 29. Rh7+ {[%clk
0:00:44.6]} 29... Kxh7 {[%clk 0:00:59.4]} 30. Qxf8 {[%clk 0:00:45.2]} 30... Qxb2
{[%clk 0:00:33.7]} 31. Rc1 {[%clk 0:00:42.5]} 31... Qxa2 {[%clk 0:00:14.6]} 32.
Qd6 {[%clk 0:00:26.5]} 32... Qa5 {[%clk 0:00:05.8]} 33. Rc2 {[%clk 0:00:19.7]}
33... Qa1+ {[%clk 0:00:02]} 34. Kd2 {[%clk 0:00:18.2]} 34... Qa5 {[%clk
0:00:01.4]} 35. Ke3 {[%clk 0:00:17.3]} 35... Rf7 {[%clk 0:00:01]} 36. Qxe6
{[%clk 0:00:13.7]} 1-0

[Event "Early-Titled-Tuesday-Blitz-January-23-2024"]
[Site "Chess.com"]
[Date "2024.01.23"]
[Round "6"]
[White "Titus369"]
[Black "Irishchessman16"]
[Result "1-0"]
[WhiteElo "2653"]
[BlackElo "2492"]
[TimeControl "180+1"]
[EndTime "9:06:27 PST"]
[Termination "Titus369 won on time"]

1. e4 {[%clk 0:03:00.9]} 1... c5 {[%clk 0:02:59.7]} 2. Nf3 {[%clk 0:02:54.8]}
2... e6 {[%clk 0:02:59.8]} 3. d4 {[%clk 0:02:53]} 3... cxd4 {[%clk 0:03:00.7]}
4. Nxd4 {[%clk 0:02:50.6]} 4... a6 {[%clk 0:03:01.2]} 5. Nc3 {[%clk 0:02:50.3]}
5... b5 {[%clk 0:02:59.3]} 6. g3 {[%clk 0:02:49.9]} 6... Bb7 {[%clk 0:02:56.3]}
7. Bg2 {[%clk 0:02:49.3]} 7... Nf6 {[%clk 0:02:53]} 8. a3 {[%clk 0:02:41.2]}
8... b4 {[%clk 0:02:50.1]} 9. axb4 {[%clk 0:02:39.9]} 9... Bxb4 {[%clk 0:02:51]}
10. O-O {[%clk 0:02:39.9]} 10... Bxc3 {[%clk 0:02:50]} 11. bxc3 {[%clk
0:02:40.8]} 11... Bxe4 {[%clk 0:02:49.6]} 12. Ba3 {[%clk 0:02:35.1]} 12... Bxg2
{[%clk 0:02:45.7]} 13. Kxg2 {[%clk 0:02:33.8]} 13... d6 {[%clk 0:02:19.4]} 14.
Qf3 {[%clk 0:02:14.5]} 14... Ra7 {[%clk 0:02:12.6]} 15. Rab1 {[%clk 0:01:58]}
15... O-O {[%clk 0:02:09.3]} 16. Rxb8 {[%clk 0:01:58.2]} 16... Qxb8 {[%clk
0:02:07.8]} 17. Nc6 {[%clk 0:01:57.6]} 17... Qc7 {[%clk 0:01:54.8]} 18. Nxa7
{[%clk 0:01:52]} 18... Qxa7 {[%clk 0:01:54.4]} 19. Bxd6 {[%clk 0:01:52.6]} 19...
Rc8 {[%clk 0:01:53]} 20. Be5 {[%clk 0:01:36.3]} 20... Qa8 {[%clk 0:01:46.1]} 21.
Ra1 {[%clk 0:01:28.3]} 21... Nd5 {[%clk 0:01:35.2]} 22. Kg1 {[%clk 0:01:18.6]}
22... f6 {[%clk 0:01:33.7]} 23. Bd4 {[%clk 0:01:17.4]} 23... e5 {[%clk
0:01:33.1]} 24. Be3 {[%clk 0:01:10]} 24... Nxc3 {[%clk 0:01:30.6]} 25. Qg4
{[%clk 0:01:06.7]} 25... Qc6 {[%clk 0:01:25.2]} 26. Bh6 {[%clk 0:01:00.9]} 26...
Rc7 {[%clk 0:01:17]} 27. Bd2 {[%clk 0:00:32.1]} 27... Ne4 {[%clk 0:01:09.7]} 28.
Be3 {[%clk 0:00:26.6]} 28... Re7 {[%clk 0:00:22.7]} 29. Qe2 {[%clk 0:00:17.9]}
29... Re6 {[%clk 0:00:14.2]} 30. Qd3 {[%clk 0:00:17.7]} 30... h5 {[%clk
0:00:13.1]} 31. h4 {[%clk 0:00:17.2]} 31... Kf7 {[%clk 0:00:10.5]} 32. Rb1
{[%clk 0:00:15.3]} 32... Nd6 {[%clk 0:00:07.5]} 33. Rb6 {[%clk 0:00:14]} 33...
Qc7 {[%clk 0:00:04.3]} 34. Rxa6 {[%clk 0:00:12.8]} 34... Nc8 {[%clk 0:00:03.5]}
35. Qd5 {[%clk 0:00:06.8]} 35... Nd6 {[%clk 0:00:02.5]} 36. Ra7 {[%clk
0:00:05.9]} 1-0

[Event "Early-Titled-Tuesday-Blitz-January-23-2024"]
[Site "Chess.com"]
[Date "2024.01.23"]
[Round "6"]
[White "ChessBliss09"]
[Black "Chempiblinka"]
[Result "1-0"]
[WhiteElo "2131"]
[BlackElo "2300"]
[TimeControl "180+1"]
[EndTime "9:06:28 PST"]
[Termination "ChessBliss09 won by resignation"]

1. e4 {[%clk 0:03:00.9]} 1... c5 {[%clk 0:02:54.3]} 2. Nf3 {[%clk 0:03:00.9]}
2... Nc6 {[%clk 0:02:51.8]} 3. d4 {[%clk 0:03:01.5]} 3... cxd4 {[%clk
0:02:51.6]} 4. Nxd4 {[%clk 0:03:02.4]} 4... g6 {[%clk 0:02:52.1]} 5. Nc3 {[%clk
0:03:02]} 5... Bg7 {[%clk 0:02:49.9]} 6. Be3 {[%clk 0:03:02.6]} 6... Nf6 {[%clk
0:02:42.8]} 7. f3 {[%clk 0:03:02.3]} 7... O-O {[%clk 0:02:40.8]} 8. g4 {[%clk
0:03:01.7]} 8... Qb6 {[%clk 0:02:33.4]} 9. Qd2 {[%clk 0:02:46]} 9... Nxe4 {[%clk
0:02:11.8]} 10. Nxc6 {[%clk 0:01:52.1]} 10... Qxb2 {[%clk 0:01:44.2]} 11. Nxe7+
{[%clk 0:01:51.4]} 11... Kh8 {[%clk 0:01:42.9]} 12. Rb1 {[%clk 0:01:43.8]} 12...
Bxc3 {[%clk 0:01:08.2]} 13. Rxb2 {[%clk 0:01:43.1]} 13... Nxd2 {[%clk
0:01:07.8]} 14. Rb5 {[%clk 0:01:00.1]} 14... Nxf3+ {[%clk 0:00:44.8]} 15. Kf2
{[%clk 0:00:58.8]} 15... Ne5 {[%clk 0:00:34.7]} 16. h3 {[%clk 0:00:39.6]} 16...
d6 {[%clk 0:00:26.2]} 17. Rb3 {[%clk 0:00:25.8]} 17... Ba5 {[%clk 0:00:21.7]}
18. Bg2 {[%clk 0:00:20.4]} 18... Be6 {[%clk 0:00:20.5]} 19. Rxb7 {[%clk
0:00:17.1]} 19... Bb6 {[%clk 0:00:10.4]} 20. Rb1 {[%clk 0:00:10.4]} 20... Bxe3+
{[%clk 0:00:09.6]} 21. Kxe3 {[%clk 0:00:11.2]} 21... Nc4+ {[%clk 0:00:09.6]} 22.
Kd4 {[%clk 0:00:10.8]} 22... Na5 {[%clk 0:00:10.5]} 23. Rc7 {[%clk 0:00:09.1]}
23... Nc4 {[%clk 0:00:11.4]} 24. Rxc4 {[%clk 0:00:06.5]} 24... Bxc4 {[%clk
0:00:12.3]} 25. Bxa8 {[%clk 0:00:06.4]} 25... Bxa2 {[%clk 0:00:11.5]} 26. Rb2
{[%clk 0:00:05.8]} 26... Rxa8 {[%clk 0:00:09.6]} 27. Rxa2 {[%clk 0:00:05.7]}
27... Kg7 {[%clk 0:00:10.4]} 28. Nd5 {[%clk 0:00:06]} 28... a5 {[%clk 0:00:11]}
29. Nb6 {[%clk 0:00:06]} 29... Rb8 {[%clk 0:00:11.2]} 30. Nc4 {[%clk 0:00:06.6]}
30... Rb1 {[%clk 0:00:09.3]} 31. Nxa5 {[%clk 0:00:06.4]} 31... Rh1 {[%clk
0:00:10.2]} 32. Ra3 {[%clk 0:00:06.2]} 32... Rh2 {[%clk 0:00:10.5]} 33. Rc3
{[%clk 0:00:06.2]} 33... h5 {[%clk 0:00:11.4]} 34. gxh5 {[%clk 0:00:05.1]} 34...
gxh5 {[%clk 0:00:12.3]} 35. Nb7 {[%clk 0:00:04.9]} 35... Rd2+ {[%clk 0:00:12.3]}
36. Ke3 {[%clk 0:00:04.5]} 36... Rf2 {[%clk 0:00:13.2]} 37. Kxf2 {[%clk
0:00:04.5]} 37... f6 {[%clk 0:00:13.5]} 38. Nxd6 {[%clk 0:00:05.2]} 38... Kg6
{[%clk 0:00:14.4]} 39. Ne4 {[%clk 0:00:05.7]} 39... Kf5 {[%clk 0:00:14.9]} 40.
Ng3+ {[%clk 0:00:06.3]} 40... Ke6 {[%clk 0:00:15.8]} 41. Rf3 {[%clk 0:00:06.2]}
41... Ke5 {[%clk 0:00:16.7]} 42. c4 {[%clk 0:00:06.8]} 42... Ke6 {[%clk
0:00:16.9]} 43. c5 {[%clk 0:00:07.1]} 43... Ke7 {[%clk 0:00:17.8]} 44. Nxh5
{[%clk 0:00:07.4]} 44... Ke6 {[%clk 0:00:18.7]} 45. Nxf6 {[%clk 0:00:07.9]}
45... Ke7 {[%clk 0:00:17.8]} 46. c6 {[%clk 0:00:08.8]} 46... Kd8 {[%clk
0:00:18.7]} 47. h4 {[%clk 0:00:09.1]} 47... Kc8 {[%clk 0:00:19.6]} 48. h5 {[%clk
0:00:10]} 48... Kc7 {[%clk 0:00:20.4]} 49. h6 {[%clk 0:00:10.9]} 49... Kxc6
{[%clk 0:00:21.3]} 50. h7 {[%clk 0:00:11.6]} 1-0

[Event "Early-Titled-Tuesday-Blitz-January-23-2024"]
[Site "Chess.com"]
[Date "2024.01.23"]
[Round "6"]
[White "N4700000"]
[Black "Glidzhian_Gor"]
[Result "1-0"]
[WhiteElo "2424"]
[BlackElo "2566"]
[TimeControl "180+1"]
[EndTime "9:06:29 PST"]
[Termination "N4700000 won by resignation"]

1. e4 {[%clk 0:03:00.9]} 1... e5 {[%clk 0:02:59.5]} 2. Nf3 {[%clk 0:03:00.7]}
2... d6 {[%clk 0:02:59.8]} 3. d4 {[%clk 0:02:59.1]} 3... exd4 {[%clk 0:03:00.7]}
4. Nxd4 {[%clk 0:02:58.4]} 4... Nf6 {[%clk 0:03:01.2]} 5. Nc3 {[%clk 0:02:57.8]}
5... Be7 {[%clk 0:03:01.8]} 6. Be2 {[%clk 0:02:45.1]} 6... O-O {[%clk
0:03:01.8]} 7. O-O {[%clk 0:02:44.6]} 7... Nc6 {[%clk 0:03:01.8]} 8. f4 {[%clk
0:02:36.4]} 8... Re8 {[%clk 0:02:56.4]} 9. Bf3 {[%clk 0:02:32.8]} 9... Nxd4
{[%clk 0:02:22.7]} 10. Qxd4 {[%clk 0:02:33.7]} 10... c6 {[%clk 0:02:20.9]} 11.
Kh1 {[%clk 0:02:26.5]} 11... Bg4 {[%clk 0:02:01.5]} 12. b3 {[%clk 0:02:13.8]}
12... Bxf3 {[%clk 0:01:58.8]} 13. gxf3 {[%clk 0:02:14.7]} 13... Nh5 {[%clk
0:01:54.6]} 14. Qd2 {[%clk 0:01:59.4]} 14... Bf6 {[%clk 0:01:52.8]} 15. Bb2
{[%clk 0:01:58.1]} 15... Qa5 {[%clk 0:01:17.1]} 16. Rg1 {[%clk 0:01:44.4]} 16...
Nxf4 {[%clk 0:00:39.8]} 17. Qxf4 {[%clk 0:01:08.8]} 17... Bxc3 {[%clk
0:00:38.8]} 18. Rxg7+ {[%clk 0:00:32]} 18... Kxg7 {[%clk 0:00:26.8]} 19. Qd2
{[%clk 0:00:25.2]} 19... Bxb2 {[%clk 0:00:22.6]} 20. Rg1+ {[%clk 0:00:22.8]}
20... Kf8 {[%clk 0:00:19.8]} 21. Qxa5 {[%clk 0:00:23.1]} 21... Bd4 {[%clk
0:00:19.1]} 22. Rg4 {[%clk 0:00:20.6]} 22... Re5 {[%clk 0:00:18.4]} 23. Qc7
{[%clk 0:00:19.1]} 23... Bc5 {[%clk 0:00:18.3]} 24. Qxb7 {[%clk 0:00:18.4]}
24... Rae8 {[%clk 0:00:18.6]} 25. Qxc6 {[%clk 0:00:18.2]} 25... f5 {[%clk
0:00:19.2]} 26. Rf4 {[%clk 0:00:17]} 26... Kg7 {[%clk 0:00:18.1]} 27. Rxf5
{[%clk 0:00:17]} 27... Rxf5 {[%clk 0:00:18.5]} 28. exf5 {[%clk 0:00:17.3]} 28...
Re1+ {[%clk 0:00:18.9]} 29. Kg2 {[%clk 0:00:17.5]} 29... Rg1+ {[%clk 0:00:19.8]}
30. Kh3 {[%clk 0:00:17.8]} 30... Kf6 {[%clk 0:00:20.7]} 31. Qd5 {[%clk
0:00:17.6]} 31... Kg5 {[%clk 0:00:17.6]} 32. f6+ {[%clk 0:00:16.2]} 32... Kxf6
{[%clk 0:00:17.1]} 33. c3 {[%clk 0:00:16.8]} 33... Rg5 {[%clk 0:00:16.2]} 34.
Qb7 {[%clk 0:00:15]} 34... Rh5+ {[%clk 0:00:16]} 35. Kg2 {[%clk 0:00:15.2]}
35... Rg5+ {[%clk 0:00:16.8]} 36. Kf1 {[%clk 0:00:15.4]} 36... Rg1+ {[%clk
0:00:17.3]} 37. Ke2 {[%clk 0:00:15.7]} 37... Rg2+ {[%clk 0:00:17.9]} 38. Kd3
{[%clk 0:00:16]} 38... Rxa2 {[%clk 0:00:18.2]} 39. b4 {[%clk 0:00:15.9]} 39...
Bg1 {[%clk 0:00:18.8]} 40. Qd5 {[%clk 0:00:15.5]} 40... Rxh2 {[%clk 0:00:14.5]}
41. Qxd6+ {[%clk 0:00:15.2]} 41... Kf5 {[%clk 0:00:14.5]} 42. Qd7+ {[%clk
0:00:14.5]} 42... Kf4 {[%clk 0:00:14.4]} 43. Qg4+ {[%clk 0:00:14.7]} 43... Ke5
{[%clk 0:00:14.9]} 44. Qxg1 {[%clk 0:00:14.8]} 44... Rh5 {[%clk 0:00:14.3]} 45.
Qc5+ {[%clk 0:00:13.3]} 1-0